[Event "Rapid Tournament (RAP)"]
[Site "Biel, Switzerland"]
[Date "2026.07.12"]
[Round "4.47"]
[White "Surdez, Patrick"]
[Black "Tcheau, Alain"]
[Result "1-0"]
[TimeControl "15 + 5"]
[WhiteTitle "-"]
[BlackTitle "-"]
[WhiteFideId "1380206"]
[BlackFideId "1306014"]
[WhiteElo "1695"]
[BlackElo "1932"]

1. c4 {[%clk 00:15:07]} {[%emt 00:00:01]} c6 {[%clk 00:15:09]} {[%emt
00:00:01]} 2. Nf3 {[%clk 00:14:59]} {[%emt 00:00:14]} e6 {[%clk 00:15:12]}
{[%emt 00:00:01]} 3. Nc3 {[%clk 00:14:54]} {[%emt 00:00:09]} d5 {[%clk
00:15:16]} {[%emt 00:00:02]} 4. cxd5 {[%clk 00:14:38]} {[%emt 00:00:21]} cxd5
{[%clk 00:15:19]} {[%emt 00:00:02]} 5. d4 {[%clk 00:14:35]} {[%emt 00:00:08]}
Nf6 {[%clk 00:15:22]} {[%emt 00:00:02]} 6. e3 {[%clk 00:14:16]} {[%emt
00:00:24]} Be7 {[%clk 00:15:25]} {[%emt 00:00:02]} 7. Bd3 {[%clk 00:13:28]}
{[%emt 00:00:53]} O-O {[%clk 00:15:28]} {[%emt 00:00:03]} 8. O-O {[%clk
00:13:27]} {[%emt 00:00:05]} Nc6 {[%clk 00:15:30]} {[%emt 00:00:03]} 9. a3
{[%clk 00:13:29]} {[%emt 00:00:03]} a6 {[%clk 00:15:34]} {[%emt 00:00:01]} 10.
Qc2 {[%clk 00:12:57]} {[%emt 00:00:37]} Bd7 {[%clk 00:15:31]} {[%emt 00:00:08]}
11. Ne5 {[%clk 00:12:43]} {[%emt 00:00:19]} Rc8 {[%clk 00:15:25]} {[%emt
00:00:10]} 12. Bd2 {[%clk 00:12:25]} {[%emt 00:00:23]} h6 {[%clk 00:15:19]}
{[%emt 00:00:11]} 13. Rae1 {[%clk 00:11:54]} {[%emt 00:00:36]} Bd6 {[%clk
00:14:47]} {[%emt 00:00:37]} 14. f4 {[%clk 00:11:50]} {[%emt 00:00:09]} Bxe5
{[%clk 00:14:38]} {[%emt 00:00:14]} 15. fxe5 {[%clk 00:11:52]} {[%emt
00:00:03]} Ne8 {[%clk 00:14:33]} {[%emt 00:00:10]} 16. Qd1 {[%clk 00:11:33]}
{[%emt 00:00:24]} f6 {[%clk 00:14:18]} {[%emt 00:00:20]} 17. Qh5 {[%clk
00:10:59]} {[%emt 00:00:39]} f5 {[%clk 00:14:02]} {[%emt 00:00:21]} 18. Rf3
{[%clk 00:10:14]} {[%emt 00:00:49]} Qg5 {[%clk 00:13:53]} {[%emt 00:00:15]} 19.
Qh3 {[%clk 00:10:16]} {[%emt 00:00:04]} h5 {[%clk 00:12:04]} {[%emt 00:01:53]}
20. Rg3 {[%clk 00:09:56]} {[%emt 00:00:25]} Qh6 {[%clk 00:12:02]} {[%emt
00:00:08]} 21. Re2 {[%clk 00:09:31]} {[%emt 00:00:30]} g5 {[%clk 00:11:19]}
{[%emt 00:00:47]} 22. Rf2 {[%clk 00:08:54]} {[%emt 00:00:42]} Ng7 {[%clk
00:11:06]} {[%emt 00:00:18]} 23. Ne2 {[%clk 00:07:55]} {[%emt 00:01:05]} Ne7
{[%clk 00:10:54]} {[%emt 00:00:16]} 24. Bb1 {[%clk 00:04:16]} {[%emt 00:03:44]}
h4 {[%clk 00:10:37]} {[%emt 00:00:22]} 25. e4 {[%clk 00:03:54]} {[%emt
00:00:27]} f4 {[%clk 00:09:00]} {[%emt 00:01:43]} 26. Rg4 {[%clk 00:03:27]}
{[%emt 00:00:32]} Ng6 {[%clk 00:08:34]} {[%emt 00:00:31]} 27. g3 {[%clk
00:02:40]} {[%emt 00:00:51]} dxe4 {[%clk 00:05:35]} {[%emt 00:03:04]} 28. Bxe4
{[%clk 00:01:54]} {[%emt 00:00:51]} Nf5 {[%clk 00:05:37]} {[%emt 00:00:03]} 29.
gxf4 {[%clk 00:01:40]} {[%emt 00:00:19]} gxf4 {[%clk 00:04:36]} {[%emt
00:01:06]} 30. Bxf5 {[%clk 00:01:15]} {[%emt 00:00:30]} Rxf5 {[%clk 00:04:13]}
{[%emt 00:00:27]} 31. Nxf4 {[%clk 00:00:55]} {[%emt 00:00:26]} Rg5 {[%clk
00:02:26]} {[%emt 00:01:52]} 32. Nxg6 {[%clk 00:00:28]} {[%emt 00:00:32]} Rxg4+
{[%clk 00:02:03]} {[%emt 00:00:29]} 33. Qxg4 {[%clk 00:00:31]} {[%emt
00:00:02]} Rc1+ {[%clk 00:01:34]} {[%emt 00:00:34]} 34. Bxc1 {[%clk 00:00:09]}
{[%emt 00:00:27]} Qxc1+ {[%clk 00:01:37]} {[%emt 00:00:02]} 35. Kg2 {[%clk
00:00:12]} {[%emt 00:00:01]} Bc6+ {[%clk 00:01:41]} 36. Kh3 {[%clk 00:00:12]}
{[%emt 00:00:05]} Qe3+ {[%clk 00:01:44]} {[%emt 00:00:02]} 37. Kxh4 {[%clk
00:00:11]} {[%emt 00:00:06]} Qxf2+ {[%clk 00:01:31]} {[%emt 00:00:18]} 38. Kg5
{[%clk 00:00:11]} {[%emt 00:00:04]} Bf3 {[%clk 00:01:02]} {[%emt 00:00:35]} 39.
Qf4 {[%clk 00:00:09]} {[%emt 00:00:06]} Qg2+ {[%clk 00:00:49]} {[%emt
00:00:19]} 40. Kf6 {[%clk 00:00:10]} {[%emt 00:00:04]} Be4 {[%clk 00:00:34]}
{[%emt 00:00:20]} 41. Qg5 {[%clk 00:00:06]} {[%emt 00:00:08]} Qf3+ {[%clk
00:00:29]} {[%emt 00:00:11]} 42. Kxe6 {[%clk 00:00:06]} {[%emt 00:00:05]} Qf7+
{[%clk 00:00:27]} {[%emt 00:00:07]} 43. Kd6 {[%clk 00:00:07]} {[%emt 00:00:04]}
Qd5+ {[%clk 00:00:20]} {[%emt 00:00:12]} 44. Ke7 {[%clk 00:00:10]} {[%emt
00:00:02]} Qf7+ {[%clk 00:00:20]} {[%emt 00:00:05]} 45. Kd8 {[%clk 00:00:11]}
{[%emt 00:00:03]} Bxg6 {[%clk 00:00:17]} {[%emt 00:00:09]} 46. Qf6 {[%clk
00:00:09]} {[%emt 00:00:07]} Qe8+ {[%clk 00:00:19]} {[%emt 00:00:03]} 47. Kc7
{[%clk 00:00:12]} {[%emt 00:00:02]} Qf7+ {[%clk 00:00:14]} {[%emt 00:00:10]} 48.
Qxf7+ {[%clk 00:00:16]} {[%emt 00:00:02]} Kxf7 {[%clk 00:00:17]} {[%emt
00:00:01]} 49. d5 {[%clk 00:00:19]} {[%emt 00:00:02]} Be4 {[%clk 00:00:12]}
{[%emt 00:00:09]} 50. d6 {[%clk 00:00:20]} {[%emt 00:00:05]} Ke6 {[%clk
00:00:15]} {[%emt 00:00:02]} 51. d7 {[%clk 00:00:23]} {[%emt 00:00:02]} 1-0

[Event "Rapid Tournament (RAP)"]
[Site "Biel, Switzerland"]
[Date "2026.07.12"]
[Round "4.48"]
[White "Hashem, Khaled"]
[Black "Zumbrunn, Simon"]
[Result "1-0"]
[TimeControl "15 + 5"]
[WhiteTitle "-"]
[BlackTitle "-"]
[WhiteFideId "10300201"]
[BlackFideId "1364146"]
[WhiteElo "1926"]
[BlackElo "1727"]

1. c4 {[%clk 00:14:58]} {[%emt 00:00:12]} Nf6 {[%clk 00:15:07]} {[%emt
00:00:03]} 2. g3 {[%clk 00:15:02]} {[%emt 00:00:01]} g6 {[%clk 00:15:10]}
{[%emt 00:00:02]} 3. Bg2 {[%clk 00:15:06]} Bg7 {[%clk 00:15:14]} 4. Nf3 {[%clk
00:15:10]} c5 {[%clk 00:15:18]} {[%emt 00:00:01]} 5. O-O {[%clk 00:15:13]}
{[%emt 00:00:02]} O-O {[%clk 00:15:14]} {[%emt 00:00:08]} 6. Nc3 {[%clk
00:15:18]} d6 {[%clk 00:14:57]} {[%emt 00:00:23]} 7. h3 {[%clk 00:15:04]}
{[%emt 00:00:18]} Nc6 {[%clk 00:14:56]} {[%emt 00:00:07]} 8. e3 {[%clk
00:15:04]} {[%emt 00:00:05]} Bf5 {[%clk 00:14:00]} {[%emt 00:01:01]} 9. d4
{[%clk 00:15:06]} {[%emt 00:00:03]} Rc8 {[%clk 00:13:27]} {[%emt 00:00:38]} 10.
Nh4 {[%clk 00:12:39]} {[%emt 00:02:32]} Bd7 {[%clk 00:12:34]} {[%emt 00:00:58]}
11. b3 {[%clk 00:11:31]} {[%emt 00:01:13]} Ne8 {[%clk 00:11:46]} {[%emt
00:00:53]} 12. Nf3 {[%clk 00:11:28]} {[%emt 00:00:07]} Nc7 {[%clk 00:11:18]}
{[%emt 00:00:34]} 13. Bb2 {[%clk 00:11:24]} {[%emt 00:00:10]} a6 {[%clk
00:11:14]} {[%emt 00:00:09]} 14. Qd2 {[%clk 00:11:14]} {[%emt 00:00:12]} b5
{[%clk 00:10:55]} {[%emt 00:00:26]} 15. dxc5 {[%clk 00:10:23]} {[%emt
00:00:56]} dxc5 {[%clk 00:10:51]} {[%emt 00:00:09]} 16. Rfd1 {[%clk 00:10:22]}
{[%emt 00:00:05]} Nb8 {[%clk 00:10:25]} {[%emt 00:00:32]} 17. cxb5 {[%clk
00:08:58]} {[%emt 00:01:30]} axb5 {[%clk 00:09:41]} {[%emt 00:00:49]} 18. Ne4
{[%clk 00:08:56]} {[%emt 00:00:06]} Ne6 {[%clk 00:08:46]} {[%emt 00:01:00]} 19.
Bxg7 {[%clk 00:08:37]} {[%emt 00:00:23]} Kxg7 {[%clk 00:08:23]} {[%emt
00:00:30]} 20. Ne5 {[%clk 00:08:01]} {[%emt 00:00:40]} Rc7 {[%clk 00:07:27]}
{[%emt 00:01:02]} 21. Rac1 {[%clk 00:07:47]} {[%emt 00:00:18]} Qc8 {[%clk
00:07:08]} {[%emt 00:00:24]} 22. Qb2 {[%clk 00:06:15]} {[%emt 00:01:37]} Kg8
{[%clk 00:07:10]} {[%emt 00:00:04]} 23. Nxd7 {[%clk 00:04:27]} {[%emt
00:01:52]} Nxd7 {[%clk 00:07:08]} {[%emt 00:00:07]} 24. Nc3 {[%clk 00:04:19]}
{[%emt 00:00:14]} Rb7 {[%clk 00:05:00]} {[%emt 00:02:13]} 25. Bxb7 Qxb7 {[%clk
00:05:04]} 26. Qd2 {[%clk 00:03:24]} {[%emt 00:00:53]} Nf6 {[%clk 00:04:16]}
{[%emt 00:00:53]} 27. Nd5 {[%clk 00:03:27]} {[%emt 00:00:03]} Ne4 {[%clk
00:03:44]} {[%emt 00:00:37]} 28. Qc2 {[%clk 00:03:14]} {[%emt 00:00:17]} N6g5
{[%clk 00:03:36]} {[%emt 00:00:14]} 29. Kh2 {[%clk 00:01:27]} {[%emt 00:01:53]}
e6 {[%clk 00:03:26]} {[%emt 00:00:15]} 30. h4 {[%clk 00:00:58]} {[%emt
00:00:33]} Nf3+ {[%clk 00:03:26]} {[%emt 00:00:05]} 31. Kg2 {[%clk 00:01:02]}
{[%emt 00:00:01]} Nxh4+ {[%clk 00:02:53]} {[%emt 00:00:38]} 32. gxh4 {[%clk
00:01:06]} {[%emt 00:00:01]} exd5 {[%clk 00:02:57]} {[%emt 00:00:02]} 33. f3
{[%clk 00:01:06]} {[%emt 00:00:05]} Nd6 {[%clk 00:02:26]} {[%emt 00:00:35]} 34.
Qxc5 {[%clk 00:01:09]} {[%emt 00:00:02]} Nf5 {[%clk 00:02:29]} {[%emt
00:00:03]} 35. Kf2 {[%clk 00:00:51]} {[%emt 00:00:22]} Qb8 {[%clk 00:02:09]}
{[%emt 00:00:26]} 36. Qc7 {[%clk 00:00:34]} {[%emt 00:00:21]} Qe8 {[%clk
00:02:06]} {[%emt 00:00:08]} 37. Qf4 {[%clk 00:00:31]} {[%emt 00:00:08]} Qe6
{[%clk 00:01:52]} {[%emt 00:00:19]} 38. Re1 {[%clk 00:00:19]} {[%emt 00:00:18]}
Ra8 {[%clk 00:01:46]} {[%emt 00:00:11]} 39. Re2 {[%clk 00:00:17]} {[%emt
00:00:06]} Re8 {[%clk 00:01:07]} {[%emt 00:00:43]} 40. h5 {[%clk 00:00:18]}
{[%emt 00:00:05]} d4 {[%clk 00:01:07]} {[%emt 00:00:05]} 41. e4 {[%clk
00:00:22]} d3 {[%clk 00:00:57]} {[%emt 00:00:15]} 42. Rd2 {[%clk 00:00:20]}
{[%emt 00:00:08]} Qb6+ {[%clk 00:00:59]} {[%emt 00:00:02]} 43. Kg2 {[%clk
00:00:21]} {[%emt 00:00:04]} Ne3+ {[%clk 00:01:02]} {[%emt 00:00:02]} 44. Kh2
{[%clk 00:00:22]} {[%emt 00:00:03]} Qd4 {[%clk 00:00:39]} {[%emt 00:00:30]} 45.
h6 {[%clk 00:00:25]} Rd8 {[%clk 00:00:26]} {[%emt 00:00:17]} 46. Rc7 {[%clk
00:00:19]} {[%emt 00:00:12]} f5 {[%clk 00:00:20]} {[%emt 00:00:11]} 47. Rg7+
{[%clk 00:00:21]} {[%emt 00:00:02]} Kh8 {[%clk 00:00:21]} {[%emt 00:00:04]} 48.
Qc7 {[%clk 00:00:20]} {[%emt 00:00:06]} 1-0

[Event "Rapid Tournament (RAP)"]
[Site "Biel, Switzerland"]
[Date "2026.07.12"]
[Round "4.49"]
[White "Lopez, Manuel"]
[Black "Boner, Timm"]
[Result "1-0"]
[TimeControl "15 + 5"]
[WhiteTitle "-"]
[BlackTitle "-"]
[WhiteFideId "1306324"]
[BlackFideId "1330039"]
[WhiteElo "1916"]
[BlackElo "1720"]

1. e4 {[%clk 00:15:07]} e5 {[%clk 00:15:09]} {[%emt 00:00:02]} 2. Nf3 {[%clk
00:15:10]} {[%emt 00:00:02]} Nc6 {[%clk 00:15:13]} {[%emt 00:00:02]} 3. Bb5
{[%clk 00:15:12]} {[%emt 00:00:01]} d6 {[%clk 00:15:17]} {[%emt 00:00:02]} 4.
d4 {[%clk 00:15:11]} {[%emt 00:00:07]} exd4 {[%clk 00:15:16]} {[%emt 00:00:05]}
5. Nxd4 {[%clk 00:15:13]} {[%emt 00:00:03]} Bd7 {[%clk 00:15:19]} {[%emt
00:00:03]} 6. O-O {[%clk 00:14:53]} {[%emt 00:00:23]} Nxd4 {[%clk 00:15:14]}
{[%emt 00:00:11]} 7. Bxd7+ {[%clk 00:14:56]} {[%emt 00:00:02]} Qxd7 {[%clk
00:15:17]} {[%emt 00:00:02]} 8. Qxd4 {[%clk 00:14:59]} {[%emt 00:00:02]} Nf6
{[%clk 00:15:16]} {[%emt 00:00:07]} 9. Nc3 {[%clk 00:14:47]} {[%emt 00:00:16]}
Be7 {[%clk 00:15:16]} {[%emt 00:00:06]} 10. Be3 {[%clk 00:12:44]} {[%emt
00:02:07]} O-O {[%clk 00:15:16]} {[%emt 00:00:05]} 11. f3 {[%clk 00:12:42]}
{[%emt 00:00:07]} c5 {[%clk 00:15:16]} {[%emt 00:00:05]} 12. Qd2 {[%clk
00:12:42]} {[%emt 00:00:05]} Rfe8 {[%clk 00:15:14]} {[%emt 00:00:07]} 13. Rad1
{[%clk 00:12:44]} {[%emt 00:00:03]} Rad8 {[%clk 00:15:13]} {[%emt 00:00:07]} 14.
a4 {[%clk 00:11:44]} {[%emt 00:01:05]} b6 {[%clk 00:15:06]} {[%emt 00:00:12]}
15. b3 {[%clk 00:11:27]} {[%emt 00:00:21]} a6 {[%clk 00:15:09]} {[%emt
00:00:03]} 16. Nd5 {[%clk 00:11:02]} {[%emt 00:00:30]} Nxd5 {[%clk 00:15:10]}
{[%emt 00:00:04]} 17. Qxd5 {[%clk 00:11:04]} {[%emt 00:00:03]} Bf6 {[%clk
00:14:46]} {[%emt 00:00:28]} 18. c4 {[%clk 00:11:05]} {[%emt 00:00:02]} Re5
{[%clk 00:14:44]} {[%emt 00:00:09]} 19. Qd3 {[%clk 00:11:05]} {[%emt 00:00:06]}
Rh5 {[%clk 00:14:44]} {[%emt 00:00:04]} 20. Rd2 {[%clk 00:10:37]} {[%emt
00:00:33]} Bg5 {[%clk 00:14:27]} {[%emt 00:00:23]} 21. f4 {[%clk 00:08:51]}
{[%emt 00:01:51]} Be7 {[%clk 00:14:19]} {[%emt 00:00:12]} 22. Qe2 {[%clk
00:08:42]} {[%emt 00:00:13]} Rh4 {[%clk 00:13:26]} {[%emt 00:00:58]} 23. g3
{[%clk 00:08:16]} {[%emt 00:00:32]} Qg4 {[%clk 00:13:18]} {[%emt 00:00:13]} 24.
Qxg4 {[%clk 00:08:12]} {[%emt 00:00:08]} Rxg4 {[%clk 00:13:21]} {[%emt
00:00:02]} 25. Kg2 {[%clk 00:08:12]} {[%emt 00:00:06]} h5 {[%clk 00:13:01]}
{[%emt 00:00:25]} 26. h3 {[%clk 00:08:09]} {[%emt 00:00:08]} Rg6 {[%clk
00:13:04]} {[%emt 00:00:02]} 27. f5 {[%clk 00:08:08]} {[%emt 00:00:06]} Bg5
{[%clk 00:12:16]} {[%emt 00:00:53]} 28. fxg6 {[%clk 00:07:43]} {[%emt
00:00:31]} Bxe3 {[%clk 00:12:18]} {[%emt 00:00:02]} 29. gxf7+ {[%clk 00:07:45]}
{[%emt 00:00:03]} Kf8 {[%clk 00:12:22]} {[%emt 00:00:02]} 30. Rd5 {[%clk
00:07:43]} {[%emt 00:00:06]} g6 {[%clk 00:12:22]} {[%emt 00:00:06]} 31. Rf6
{[%clk 00:07:34]} {[%emt 00:00:13]} g5 {[%clk 00:12:11]} {[%emt 00:00:16]} 32.
Rdxd6 {[%clk 00:07:27]} {[%emt 00:00:13]} Rxd6 {[%clk 00:12:14]} {[%emt
00:00:02]} 33. Rxd6 {[%clk 00:07:30]} {[%emt 00:00:01]} Kxf7 {[%clk 00:11:42]}
{[%emt 00:00:37]} 34. Rxb6 {[%clk 00:07:26]} {[%emt 00:00:10]} a5 {[%clk
00:11:41]} {[%emt 00:00:05]} 35. Kf3 {[%clk 00:07:28]} {[%emt 00:00:03]} Bd4
{[%clk 00:11:44]} {[%emt 00:00:02]} 36. Ra6 {[%clk 00:07:15]} {[%emt 00:00:18]}
Bc3 {[%clk 00:11:45]} {[%emt 00:00:03]} 37. Rh6 {[%clk 00:07:05]} {[%emt
00:00:16]} g4+ {[%clk 00:11:27]} {[%emt 00:00:23]} 38. hxg4 {[%clk 00:07:06]}
{[%emt 00:00:04]} hxg4+ {[%clk 00:11:28]} {[%emt 00:00:03]} 39. Kxg4 {[%clk
00:07:10]} {[%emt 00:00:02]} Bd2 {[%clk 00:11:29]} {[%emt 00:00:04]} 40. Rb6
{[%clk 00:07:13]} {[%emt 00:00:02]} Ke7 {[%clk 00:11:30]} {[%emt 00:00:04]} 41.
Kf5 {[%clk 00:07:17]} {[%emt 00:00:01]} 1-0

[Event "Rapid Tournament (RAP)"]
[Site "Biel, Switzerland"]
[Date "2026.07.12"]
[Round "4.50"]
[White "Ghosh, David"]
[Black "Lachat, Pierre"]
[Result "0-1"]
[TimeControl "15 + 5"]
[WhiteTitle "-"]
[BlackTitle "-"]
[WhiteFideId "1366718"]
[BlackFideId "1310763"]
[WhiteElo "1685"]
[BlackElo "1904"]

1. e4 {[%clk 00:15:07]} {[%emt 00:00:02]} c5 {[%clk 00:15:08]} {[%emt
00:00:03]} 2. Nf3 {[%clk 00:15:09]} {[%emt 00:00:03]} e6 {[%clk 00:15:09]}
{[%emt 00:00:04]} 3. d4 {[%clk 00:15:10]} {[%emt 00:00:04]} cxd4 {[%clk
00:15:12]} {[%emt 00:00:02]} 4. Nxd4 {[%clk 00:15:12]} {[%emt 00:00:02]} Nc6
{[%clk 00:15:16]} {[%emt 00:00:02]} 5. Nc3 {[%clk 00:15:15]} {[%emt 00:00:02]}
Bb4 {[%clk 00:15:14]} {[%emt 00:00:07]} 6. Ndb5 {[%clk 00:12:53]} {[%emt
00:02:27]} Nge7 {[%clk 00:13:39]} {[%emt 00:01:40]} 7. Nd6+ {[%clk 00:12:41]}
{[%emt 00:00:16]} Bxd6 {[%clk 00:13:43]} {[%emt 00:00:02]} 8. Qxd6 {[%clk
00:12:40]} {[%emt 00:00:06]} a6 {[%clk 00:13:45]} {[%emt 00:00:03]} 9. Be3
{[%clk 00:12:02]} {[%emt 00:00:42]} O-O {[%clk 00:13:19]} {[%emt 00:00:31]} 10.
O-O-O {[%clk 00:11:53]} {[%emt 00:00:15]} Qa5 {[%clk 00:12:52]} {[%emt
00:00:32]} 11. f4 {[%clk 00:11:20]} {[%emt 00:00:37]} Re8 {[%clk 00:10:02]}
{[%emt 00:02:56]} 12. g4 {[%clk 00:11:09]} {[%emt 00:00:16]} b5 {[%clk
00:08:52]} {[%emt 00:01:15]} 13. b3 {[%clk 00:10:34]} {[%emt 00:00:40]} Qxc3
{[%clk 00:07:30]} {[%emt 00:01:27]} 14. Kb1 {[%clk 00:10:09]} {[%emt 00:00:29]}
Qxe3 {[%clk 00:07:14]} {[%emt 00:00:22]} 15. h4 {[%clk 00:09:34]} {[%emt
00:00:40]} Ng6 {[%clk 00:06:14]} {[%emt 00:01:05]} 16. f5 {[%clk 00:08:57]}
{[%emt 00:00:42]} Nge5 {[%clk 00:05:22]} {[%emt 00:00:57]} 17. f6 {[%clk
00:08:01]} {[%emt 00:01:00]} Qxe4 {[%clk 00:04:08]} {[%emt 00:01:20]} 18. fxg7
{[%clk 00:07:47]} {[%emt 00:00:18]} Qxh1 {[%emt 00:00:21]} 0-1

[Event "Rapid Tournament (RAP)"]
[Site "Biel, Switzerland"]
[Date "2026.07.12"]
[Round "4.51"]
[White "Berger, Vincent"]
[Black "Haefliger, Patrick"]
[Result "1/2-1/2"]
[TimeControl "15 + 5"]
[WhiteTitle "-"]
[BlackTitle "-"]
[WhiteFideId "1317822"]
[BlackFideId "1372777"]
[WhiteElo "1877"]
[BlackElo "1685"]

1. d4 {[%clk 00:15:06]} {[%emt 00:00:02]} c5 {[%clk 00:15:08]} {[%emt
00:00:03]} 2. c3 {[%clk 00:14:58]} {[%emt 00:00:13]} Nf6 {[%clk 00:14:53]}
{[%emt 00:00:20]} 3. Nf3 {[%clk 00:15:00]} {[%emt 00:00:03]} g6 {[%clk
00:14:46]} {[%emt 00:00:11]} 4. g3 {[%clk 00:14:59]} {[%emt 00:00:08]} Bg7
{[%clk 00:14:46]} {[%emt 00:00:04]} 5. Bg2 {[%clk 00:15:01]} {[%emt 00:00:03]}
O-O {[%clk 00:14:47]} {[%emt 00:00:04]} 6. O-O {[%clk 00:15:02]} {[%emt
00:00:04]} d6 {[%clk 00:14:35]} {[%emt 00:00:17]} 7. Re1 {[%clk 00:13:39]}
{[%emt 00:01:29]} Na6 {[%clk 00:14:05]} {[%emt 00:00:34]} 8. e4 {[%clk
00:13:03]} {[%emt 00:00:41]} Nd7 {[%clk 00:12:45]} {[%emt 00:01:26]} 9. e5
{[%clk 00:12:06]} {[%emt 00:01:02]} dxe5 {[%clk 00:11:54]} {[%emt 00:00:55]} 10.
dxe5 {[%clk 00:11:46]} {[%emt 00:00:25]} Nc7 {[%clk 00:11:37]} {[%emt
00:00:21]} 11. Nbd2 {[%clk 00:09:40]} {[%emt 00:02:12]} Rb8 {[%clk 00:11:31]}
{[%emt 00:00:11]} 12. a4 {[%clk 00:09:07]} {[%emt 00:00:39]} b6 {[%clk
00:11:21]} {[%emt 00:00:14]} 13. Nc4 {[%clk 00:08:20]} {[%emt 00:00:53]} Ba6
{[%clk 00:10:57]} {[%emt 00:00:28]} 14. Qb3 {[%clk 00:07:13]} {[%emt 00:01:13]}
Bxc4 {[%clk 00:10:50]} {[%emt 00:00:12]} 15. Qxc4 {[%clk 00:07:13]} {[%emt
00:00:05]} Ne6 {[%clk 00:10:09]} {[%emt 00:00:44]} 16. b3 {[%clk 00:06:58]}
{[%emt 00:00:22]} Qc7 {[%clk 00:10:08]} {[%emt 00:00:06]} 17. Qe4 {[%clk
00:06:27]} {[%emt 00:00:35]} Rbd8 {[%clk 00:09:33]} {[%emt 00:00:40]} 18. Bb2
{[%clk 00:06:27]} {[%emt 00:00:06]} Nb8 {[%clk 00:08:12]} {[%emt 00:01:26]} 19.
Rad1 {[%clk 00:06:03]} {[%emt 00:00:28]} Rxd1 {[%clk 00:08:05]} {[%emt
00:00:12]} 20. Rxd1 {[%clk 00:06:07]} {[%emt 00:00:01]} Rd8 {[%clk 00:07:21]}
{[%emt 00:00:49]} 21. Rxd8+ {[%clk 00:05:39]} {[%emt 00:00:34]} Nxd8 {[%clk
00:07:02]} {[%emt 00:00:23]} 22. c4 {[%clk 00:05:10]} {[%emt 00:00:35]} e6
{[%clk 00:07:02]} {[%emt 00:00:03]} 23. Qd3 {[%clk 00:04:35]} {[%emt 00:00:41]}
Ndc6 {[%clk 00:06:15]} {[%emt 00:00:52]} 24. Qe2 {[%clk 00:04:34]} {[%emt
00:00:07]} Nd7 {[%clk 00:05:44]} {[%emt 00:00:36]} 25. Qe4 {[%clk 00:03:23]}
{[%emt 00:01:16]} Ndxe5 {[%clk 00:05:01]} {[%emt 00:00:47]} 26. Ng5 {[%clk
00:02:33]} {[%emt 00:00:56]} f5 {[%clk 00:04:10]} {[%emt 00:00:55]} 27. Qh4
{[%clk 00:02:20]} {[%emt 00:00:18]} Bf6 {[%clk 00:03:11]} {[%emt 00:01:02]} 28.
Qxh7+ {[%clk 00:01:01]} {[%emt 00:01:28]} Qxh7 {[%clk 00:02:59]} {[%emt
00:00:15]} 29. Nxh7 {[%clk 00:01:04]} {[%emt 00:00:02]} Kxh7 {[%clk 00:03:01]}
{[%emt 00:00:03]} 30. Bxc6 {[%clk 00:01:07]} {[%emt 00:00:02]} Nxc6 {[%clk
00:02:04]} {[%emt 00:01:01]} 31. Bxf6 {[%clk 00:01:11]} Na5 {[%clk 00:02:04]}
{[%emt 00:00:07]} 32. Be5 {[%clk 00:01:09]} {[%emt 00:00:08]} Nxb3 {[%clk
00:02:01]} {[%emt 00:00:08]} 33. Bb8 {[%clk 00:01:12]} Nd2 {[%clk 00:01:31]}
{[%emt 00:00:34]} 34. Bxa7 {[%clk 00:01:15]} {[%emt 00:00:03]} Nxc4 {[%clk
00:01:34]} {[%emt 00:00:02]} 35. Kf1 {[%clk 00:01:01]} {[%emt 00:00:20]} Nb2
{[%emt 00:00:46]} 36. Bxb6 {[%emt 00:00:03]} Nxa4 37. Ke2 {[%emt 00:00:02]}
1/2-1/2

[Event "Rapid Tournament (RAP)"]
[Site "Biel, Switzerland"]
[Date "2026.07.12"]
[Round "4.52"]
[White "Gast, Michael"]
[Black "Jaussi, Kevin"]
[Result "1-0"]
[TimeControl "15 + 5"]
[WhiteTitle "-"]
[BlackTitle "-"]
[WhiteFideId "1373196"]
[BlackFideId "1324721"]
[WhiteElo "1682"]
[BlackElo "1859"]

1. e4 {[%clk 00:15:07]} {[%emt 00:00:02]} c6 {[%clk 00:15:08]} {[%emt
00:00:02]} 2. d4 {[%clk 00:15:10]} {[%emt 00:00:03]} d5 {[%clk 00:15:12]}
{[%emt 00:00:01]} 3. f3 {[%clk 00:15:13]} {[%emt 00:00:03]} e6 {[%clk
00:15:16]} {[%emt 00:00:01]} 4. a3 {[%clk 00:15:03]} {[%emt 00:00:15]} c5
{[%clk 00:15:17]} {[%emt 00:00:04]} 5. c3 {[%clk 00:14:47]} {[%emt 00:00:21]}
Nc6 {[%clk 00:15:18]} {[%emt 00:00:04]} 6. Be3 {[%clk 00:14:47]} {[%emt
00:00:04]} c4 {[%clk 00:15:15]} {[%emt 00:00:08]} 7. Nd2 {[%clk 00:14:30]}
{[%emt 00:00:23]} Nge7 {[%clk 00:14:58]} {[%emt 00:00:22]} 8. b3 {[%clk
00:14:25]} {[%emt 00:00:09]} b5 {[%clk 00:14:56]} {[%emt 00:00:07]} 9. Be2
{[%clk 00:13:18]} {[%emt 00:01:12]} Na5 {[%clk 00:14:22]} {[%emt 00:00:39]} 10.
bxc4 {[%clk 00:12:05]} {[%emt 00:01:17]} bxc4 {[%clk 00:14:25]} {[%emt
00:00:03]} 11. exd5 {[%clk 00:11:43]} {[%emt 00:00:27]} Nxd5 {[%clk 00:14:13]}
{[%emt 00:00:16]} 12. Bf2 {[%clk 00:10:27]} {[%emt 00:01:23]} Nxc3 {[%clk
00:14:14]} {[%emt 00:00:03]} 13. Qc2 {[%clk 00:10:19]} {[%emt 00:00:13]} Nxe2
{[%clk 00:13:52]} {[%emt 00:00:27]} 14. Nxe2 {[%clk 00:10:18]} {[%emt
00:00:05]} Bd7 {[%clk 00:13:45]} {[%emt 00:00:13]} 15. O-O {[%clk 00:09:38]}
{[%emt 00:00:45]} Be7 {[%clk 00:13:10]} {[%emt 00:00:39]} 16. Bg3 {[%clk
00:09:02]} {[%emt 00:00:42]} O-O {[%clk 00:13:01]} {[%emt 00:00:13]} 17. Rfb1
{[%clk 00:07:42]} {[%emt 00:01:25]} Bf6 {[%clk 00:12:35]} {[%emt 00:00:32]} 18.
Ne4 {[%clk 00:07:17]} {[%emt 00:00:30]} Nb3 {[%clk 00:11:41]} {[%emt 00:00:59]}
19. Nxf6+ {[%clk 00:06:54]} {[%emt 00:00:28]} Qxf6 {[%clk 00:11:39]} {[%emt
00:00:06]} 20. Be5 {[%clk 00:06:52]} {[%emt 00:00:08]} Qh6 {[%clk 00:10:14]}
{[%emt 00:01:30]} 21. Ra2 {[%clk 00:06:32]} {[%emt 00:00:26]} Qe3+ {[%clk
00:10:08]} {[%emt 00:00:10]} 22. Kf1 {[%clk 00:05:49]} {[%emt 00:00:49]} Ba4
{[%clk 00:09:31]} {[%emt 00:00:41]} 23. Bf4 {[%clk 00:05:20]} {[%emt 00:00:33]}
Nxd4 {[%clk 00:07:40]} {[%emt 00:01:57]} 24. Qxa4 {[%clk 00:04:49]} {[%emt
00:00:36]} Qd3 {[%clk 00:07:19]} {[%emt 00:00:25]} 25. Rd1 {[%clk 00:04:32]}
{[%emt 00:00:22]} Qxe2+ {[%clk 00:05:20]} {[%emt 00:02:04]} 26. Rxe2 {[%clk
00:04:34]} {[%emt 00:00:04]} 1-0